{"text_format":"1","workbook":"xlsx","n_sheets":2,"sheets":["Social Media Report","Report Data"],"not_rendered":{"charts":0,"images":1,"macros":0,"external_links":0,"defined_names":0,"comments":0,"pivot_tables":0},"unopened":[],"bounds":{"document_bytes":16777216,"sheet_cells":100000,"rows_first":2000,"rows_last":500,"rows_between":2000,"halvings":0,"cell_chars":16384,"cell_head_chars":4096},"cells_cut":0,"cells_raw":0,"read":"whole","date_system":"1900"}

{"sheet":"Social Media Report","index":0,"n_rows":42,"n_cols":10,"rows_kept":42,"cut":false,"hidden":false,"merged":[[1,5,1,6],[41,2,41,7],[3,1,3,9],[31,1,31,8],[35,1,35,8],[9,1,9,9],[14,1,14,9],[23,1,23,8],[19,1,19,8]]}
[null,"SOCIAL MEDIA REPORT"]
[null,null,null,null,null,"REPORT COVERAGE DATES",null,null,"THROUGH"]
[]
[null,"R E A C H"]
[null,{"$f":"SUM('Report Data'!I8:I1004)","v":6258},"TOTAL REACH",{"$f":"COUNT('Report Data'!B8:B1004)","v":10},"POSTS THIS WEEK",{"$f":"AVERAGE('Report Data'!D8:D1004)","v":81.900000000000006},"AVERAGE RETWEETS PER POST",null,{"$f":"SUM('Report Data'!E8:E1004)","v":1975},"LIKES"]
[null,{"$f":"(SUM('Report Data'!H2:H1004)/30)*7","v":2333.333333333333},"typical ",{"$f":"'Report Data'!S4*7","v":2.333333333333333},"typical week",{"$f":"AVERAGE('Report Data'!L8:L1004)","v":81.900000000000006},"typical",null,{"$f":"(SUM('Report Data'!M8:M1004)/30)*7","v":460.83333333333331},"typical"]
[null,null,null,{"$f":"SUM('Report Data'!D8:D1004)","v":819},"TOTAL RETWEETS",{"$f":"AVERAGE('Report Data'!I8:I1004)","v":25.439024390243901},"AVERAGE REACH PER POST",null,{"$f":"SUM('Report Data'!F8:F1004)","v":690},"MENTIONS"]
[null,null,null,{"$f":"(SUM('Report Data'!D2:D1004)/30)*7","v":191.1},"typical week",{"$f":"AVERAGE('Report Data'!Q8:Q1004)","v":625.79999999999995},"typical",null,{"$f":"(SUM('Report Data'!N2:N1004)/30)*7","v":161},"typical "]
[]
[null,"TOP POSTS – LAST WEEK"]
[null,null,"DATE OF POST","POST CONTENT","RETWEETS","LIKES","MENTIONS","CLICKS","POTENTIAL","ENGAGEMENT"]
[null,"TOP REACH"]
[null,"TOP RESHARE"]
[]
[null,"TOP POSTS – LAST MONTH"]
[null,null,"DATE OF POST","POST CONTENT","RETWEETS","LIKES","MENTIONS","CLICKS","POTENTIAL","ENGAGEMENT"]
[null,"TOP REACH"]
[null,"TOP RESHARE"]
[]
[null,"TOTAL ENGAGEMENT"]
[null,{"$f":"AVERAGE('Report Data'!I8:I1004)","v":25.439024390243901},"AVERAGE ENGAGEMENT PER POST"]
[null,{"$f":"'Report Data'!Y4*7","v":4382.9333333333334},"typical week"]
[]
[null,"TOP 5 POSTS"]
[null,"DATE OF POST","POST CONTENT","RETWEETS","LIKES","MENTIONS","CLICKS","POTENTIAL","ENGAGEMENT"]
[]
[]
[]
[]
[]
[]
[null,"TOTAL CLICKS"]
[null,{"$f":"AVERAGE('Report Data'!G8:G1004)","v":277.39999999999998},"AVERAGE CLICKS PER POST"]
[null,{"$f":"'Report Data'!W4*7","v":1941.7999999999997},"typical week"]
[]
[null,"TOP 3 POSTS"]
[null,"DATE OF POST","POST CONTENT","RETWEETS","LIKES","MENTIONS","CLICKS","POTENTIAL","ENGAGEMENT"]
[]
[]
[]
[]
[null,null,"CLICK HERE TO CONTACT SMARTSHEET AND LEARN MORE ABOUT SIGHTS "]

{"sheet":"Report Data","index":1,"n_rows":253,"n_cols":25,"rows_kept":253,"cut":false,"hidden":false,"merged":[[5,1,5,8],[5,9,5,16],[5,17,5,24],[1,18,1,24]]}
[]
[null,null,null,null,null,null,null,null,null,null,null,null,null,null,null,null,null,null,"30 DAY BENCHMARKS"]
[null,"SOCIAL MEDIA REPORT DATA",null,null,null,null,null,null,null,null,null,null,null,null,null,null,null,null,"POSTS PER DAY","RETWEETS PER POST","FAVORITES PER POST","MENTIONS PER POST","CLICKS PER POST","POTENTIAL PER POST","ENGAGEMENT PER POST"]
[null,null,null,null,null,null,null,null,null,null,null,null,null,null,null,null,null,null,{"$f":"COUNT(B:B)/30","v":0.33333333333333331},{"$f":"AVERAGE(D8:D1005)","v":81.900000000000006},{"$f":"AVERAGE(E8:E1005)","v":197.5},{"$f":"AVERAGE(F8:F1005)","v":69},{"$f":"AVERAGE(G8:G1005)","v":277.39999999999998},{"$f":"AVERAGE(H8:H1005)","v":1000},{"$f":"SUM(S4:W4)","v":626.13333333333333}]
[]
[null,"THIS WEEK",null,null,null,null,null,null,null,"1 WEEK AGO",null,null,null,null,null,null,null,"2 WEEKS AGO"]
[null,"DATE OF POST","POST CONTENT","RETWEETS","LIKES","MENTIONS","CLICKS","POTENTIAL","ENGAGEMENT","DATE OF POST","POST CONTENT","RETWEETS","LIKES","MENTIONS","CLICKS","POTENTIAL","ENGAGEMENT","DATE OF POST","POST CONTENT","RETWEETS","LIKES","MENTIONS","CLICKS","POTENTIAL","ENGAGEMENT"]
[null,"2018-08-30","CONTENT 1",89,22,100,300,1000,{"$f":"SUM(D8:G8)","v":511},"2018-08-23","CONTENT 22",89,22,100,300,1000,511]
[null,"2018-08-31","CONTENT 2",150,200,150,500,1000,{"$f":"SUM(D9:G9)","v":1000},"2018-08-23","CONTENT 25",150,200,150,500,1000,1000]
[null,"2018-09-01","CONTENT 3",89,300,88,150,1000,627,"2018-08-24","CONTENT 36",89,300,88,150,1000,627]
[null,"2018-09-02","CONTENT 5",95,140,55,150,1000,440,"2018-08-25","CONTENT 56",95,140,55,150,1000,440]
[null,"2018-09-02","CONTENT 4",55,55,77,150,1000,337,"2018-08-25","CONTENT 44",55,55,77,150,1000,337]
[null,"2018-09-03","CONTENT 8",77,99,66,200,1000,442,"2018-08-25","CONTENT 83",77,99,66,200,1000,442]
[null,"2018-09-03","CONTENT 7",86,156,55,357,1000,654,"2018-08-27","CONTENT 73",86,156,55,357,1000,654]
[null,"2018-09-04","CONTENT 6",45,577,44,597,1000,1263,"2018-08-28","CONTENT 62",45,577,44,597,1000,1263]
[null,"2018-09-05","CONTENT 11",22,215,33,215,1000,485,"2018-08-29","CONTENT 17",22,215,33,215,1000,485]
[null,"2018-09-05","CONTENT 19",111,211,22,155,1000,499,"2018-08-29","CONTENT 36",111,211,22,155,1000,499]
[null,null,null,null,null,null,null,null,0]
[null,null,null,null,null,null,null,null,0]
[null,null,null,null,null,null,null,null,0]
[null,null,null,null,null,null,null,null,0]
[null,null,null,null,null,null,null,null,0]
[null,null,null,null,null,null,null,null,0]
[null,null,null,null,null,null,null,null,0]
[null,null,null,null,null,null,null,null,0]
[null,null,null,null,null,null,null,null,0]
[null,null,null,null,null,null,null,null,0]
[null,null,null,null,null,null,null,null,0]
[null,null,null,null,null,null,null,null,0]
[null,null,null,null,null,null,null,null,0]
[null,null,null,null,null,null,null,null,0]
[null,null,null,null,null,null,null,null,0]
[null,null,null,null,null,null,null,null,0]
[null,null,null,null,null,null,null,null,0]
[null,null,null,null,null,null,null,null,0]
[null,null,null,null,null,null,null,null,0]
[null,null,null,null,null,null,null,null,0]
[null,null,null,null,null,null,null,null,0]
[null,null,null,null,null,null,null,null,0]
[null,null,null,null,null,null,null,null,0]
[null,null,null,null,null,null,null,null,0]
[null,null,null,null,null,null,null,null,0]
[null,null,null,null,null,null,null,null,0]
[null,null,null,null,null,null,null,null,0]
[null,null,null,null,null,null,null,null,0]
[null,null,null,null,null,null,null,null,0]
[null,null,null,null,null,null,null,null,0]
[null,null,null,null,null,null,null,null,0]
[null,null,null,null,null,null,null,null,0]
[null,null,null,null,null,null,null,null,0]
[null,null,null,null,null,null,null,null,0]
[null,null,null,null,null,null,null,null,0]
[null,null,null,null,null,null,null,null,0]
[null,null,null,null,null,null,null,null,0]
[null,null,null,null,null,null,null,null,0]
[null,null,null,null,null,null,null,null,0]
[null,null,null,null,null,null,null,null,0]
[null,null,null,null,null,null,null,null,0]
[null,null,null,null,null,null,null,null,0]
[null,null,null,null,null,null,null,null,0]
[null,null,null,null,null,null,null,null,0]
[null,null,null,null,null,null,null,null,0]
[null,null,null,null,null,null,null,null,0]
[null,null,null,null,null,null,null,null,0]
[null,null,null,null,null,null,null,null,0]
[null,null,null,null,null,null,null,null,0]
[null,null,null,null,null,null,null,null,0]
[null,null,null,null,null,null,null,null,0]
[null,null,null,null,null,null,null,null,0]
[null,null,null,null,null,null,null,null,0]
[null,null,null,null,null,null,null,null,0]
[null,null,null,null,null,null,null,null,0]
[null,null,null,null,null,null,null,null,{"$f":"SUM(D73:G73)","v":0}]
[null,null,null,null,null,null,null,null,0]
[null,null,null,null,null,null,null,null,0]
[null,null,null,null,null,null,null,null,0]
[null,null,null,null,null,null,null,null,0]
[null,null,null,null,null,null,null,null,0]
[null,null,null,null,null,null,null,null,0]
[null,null,null,null,null,null,null,null,0]
[null,null,null,null,null,null,null,null,0]
[null,null,null,null,null,null,null,null,0]
[null,null,null,null,null,null,null,null,0]
[null,null,null,null,null,null,null,null,0]
[null,null,null,null,null,null,null,null,0]
[null,null,null,null,null,null,null,null,0]
[null,null,null,null,null,null,null,null,0]
[null,null,null,null,null,null,null,null,0]
[null,null,null,null,null,null,null,null,0]
[null,null,null,null,null,null,null,null,0]
[null,null,null,null,null,null,null,null,0]
[null,null,null,null,null,null,null,null,0]
[null,null,null,null,null,null,null,null,0]
[null,null,null,null,null,null,null,null,0]
[null,null,null,null,null,null,null,null,0]
[null,null,null,null,null,null,null,null,0]
[null,null,null,null,null,null,null,null,0]
[null,null,null,null,null,null,null,null,0]
[null,null,null,null,null,null,null,null,0]
[null,null,null,null,null,null,null,null,0]
[null,null,null,null,null,null,null,null,0]
[null,null,null,null,null,null,null,null,0]
[null,null,null,null,null,null,null,null,0]
[null,null,null,null,null,null,null,null,0]
[null,null,null,null,null,null,null,null,0]
[null,null,null,null,null,null,null,null,0]
[null,null,null,null,null,null,null,null,0]
[null,null,null,null,null,null,null,null,0]
[null,null,null,null,null,null,null,null,0]
[null,null,null,null,null,null,null,null,0]
[null,null,null,null,null,null,null,null,0]
[null,null,null,null,null,null,null,null,0]
[null,null,null,null,null,null,null,null,0]
[null,null,null,null,null,null,null,null,0]
[null,null,null,null,null,null,null,null,0]
[null,null,null,null,null,null,null,null,0]
[null,null,null,null,null,null,null,null,0]
[null,null,null,null,null,null,null,null,0]
[null,null,null,null,null,null,null,null,0]
[null,null,null,null,null,null,null,null,0]
[null,null,null,null,null,null,null,null,0]
[null,null,null,null,null,null,null,null,0]
[null,null,null,null,null,null,null,null,0]
[null,null,null,null,null,null,null,null,0]
[null,null,null,null,null,null,null,null,0]
[null,null,null,null,null,null,null,null,0]
[null,null,null,null,null,null,null,null,0]
[null,null,null,null,null,null,null,null,0]
[null,null,null,null,null,null,null,null,0]
[null,null,null,null,null,null,null,null,0]
[null,null,null,null,null,null,null,null,0]
[null,null,null,null,null,null,null,null,0]
[null,null,null,null,null,null,null,null,0]
[null,null,null,null,null,null,null,null,0]
[null,null,null,null,null,null,null,null,0]
[null,null,null,null,null,null,null,null,0]
[null,null,null,null,null,null,null,null,{"$f":"SUM(D137:G137)","v":0}]
[null,null,null,null,null,null,null,null,0]
[null,null,null,null,null,null,null,null,0]
[null,null,null,null,null,null,null,null,0]
[null,null,null,null,null,null,null,null,0]
[null,null,null,null,null,null,null,null,0]
[null,null,null,null,null,null,null,null,0]
[null,null,null,null,null,null,null,null,0]
[null,null,null,null,null,null,null,null,0]
[null,null,null,null,null,null,null,null,0]
[null,null,null,null,null,null,null,null,0]
[null,null,null,null,null,null,null,null,0]
[null,null,null,null,null,null,null,null,0]
[null,null,null,null,null,null,null,null,0]
[null,null,null,null,null,null,null,null,0]
[null,null,null,null,null,null,null,null,0]
[null,null,null,null,null,null,null,null,0]
[null,null,null,null,null,null,null,null,0]
[null,null,null,null,null,null,null,null,0]
[null,null,null,null,null,null,null,null,0]
[null,null,null,null,null,null,null,null,0]
[null,null,null,null,null,null,null,null,0]
[null,null,null,null,null,null,null,null,0]
[null,null,null,null,null,null,null,null,0]
[null,null,null,null,null,null,null,null,0]
[null,null,null,null,null,null,null,null,0]
[null,null,null,null,null,null,null,null,0]
[null,null,null,null,null,null,null,null,0]
[null,null,null,null,null,null,null,null,0]
[null,null,null,null,null,null,null,null,0]
[null,null,null,null,null,null,null,null,0]
[null,null,null,null,null,null,null,null,0]
[null,null,null,null,null,null,null,null,0]
[null,null,null,null,null,null,null,null,0]
[null,null,null,null,null,null,null,null,0]
[null,null,null,null,null,null,null,null,0]
[null,null,null,null,null,null,null,null,0]
[null,null,null,null,null,null,null,null,0]
[null,null,null,null,null,null,null,null,0]
[null,null,null,null,null,null,null,null,0]
[null,null,null,null,null,null,null,null,0]
[null,null,null,null,null,null,null,null,0]
[null,null,null,null,null,null,null,null,0]
[null,null,null,null,null,null,null,null,0]
[null,null,null,null,null,null,null,null,0]
[null,null,null,null,null,null,null,null,0]
[null,null,null,null,null,null,null,null,0]
[null,null,null,null,null,null,null,null,0]
[null,null,null,null,null,null,null,null,0]
[null,null,null,null,null,null,null,null,0]
[null,null,null,null,null,null,null,null,0]
[null,null,null,null,null,null,null,null,0]
[null,null,null,null,null,null,null,null,0]
[null,null,null,null,null,null,null,null,0]
[null,null,null,null,null,null,null,null,0]
[null,null,null,null,null,null,null,null,0]
[null,null,null,null,null,null,null,null,0]
[null,null,null,null,null,null,null,null,0]
[null,null,null,null,null,null,null,null,0]
[null,null,null,null,null,null,null,null,0]
[null,null,null,null,null,null,null,null,0]
[null,null,null,null,null,null,null,null,0]
[null,null,null,null,null,null,null,null,0]
[null,null,null,null,null,null,null,null,0]
[null,null,null,null,null,null,null,null,{"$f":"SUM(D201:G201)","v":0}]
[null,null,null,null,null,null,null,null,0]
[null,null,null,null,null,null,null,null,0]
[null,null,null,null,null,null,null,null,0]
[null,null,null,null,null,null,null,null,0]
[null,null,null,null,null,null,null,null,0]
[null,null,null,null,null,null,null,null,0]
[null,null,null,null,null,null,null,null,0]
[null,null,null,null,null,null,null,null,0]
[null,null,null,null,null,null,null,null,0]
[null,null,null,null,null,null,null,null,0]
[null,null,null,null,null,null,null,null,0]
[null,null,null,null,null,null,null,null,0]
[null,null,null,null,null,null,null,null,0]
[null,null,null,null,null,null,null,null,0]
[null,null,null,null,null,null,null,null,0]
[null,null,null,null,null,null,null,null,0]
[null,null,null,null,null,null,null,null,0]
[null,null,null,null,null,null,null,null,0]
[null,null,null,null,null,null,null,null,0]
[null,null,null,null,null,null,null,null,0]
[null,null,null,null,null,null,null,null,0]
[null,null,null,null,null,null,null,null,0]
[null,null,null,null,null,null,null,null,0]
[null,null,null,null,null,null,null,null,0]
[null,null,null,null,null,null,null,null,0]
[null,null,null,null,null,null,null,null,0]
[null,null,null,null,null,null,null,null,0]
[null,null,null,null,null,null,null,null,0]
[null,null,null,null,null,null,null,null,0]
[null,null,null,null,null,null,null,null,0]
[null,null,null,null,null,null,null,null,0]
[null,null,null,null,null,null,null,null,0]
[null,null,null,null,null,null,null,null,0]
[null,null,null,null,null,null,null,null,0]
[null,null,null,null,null,null,null,null,0]
[null,null,null,null,null,null,null,null,0]
[null,null,null,null,null,null,null,null,0]
[null,null,null,null,null,null,null,null,0]
[null,null,null,null,null,null,null,null,0]
[null,null,null,null,null,null,null,null,0]
[null,null,null,null,null,null,null,null,0]
[null,null,null,null,null,null,null,null,0]
[null,null,null,null,null,null,null,null,0]
[null,null,null,null,null,null,null,null,0]
[null,null,null,null,null,null,null,null,0]
[null,null,null,null,null,null,null,null,0]
[null,null,null,null,null,null,null,null,0]
[null,null,null,null,null,null,null,null,0]
[null,null,null,null,null,null,null,null,0]
[null,null,null,null,null,null,null,null,0]
[null,null,null,null,null,null,null,null,0]
[null,null,null,null,null,null,null,null,0]